[Event "EYTCC U12 Girls 2019"]
[Site "Pardubice"]
[Date "2019.07.13"]
[Round "3.19"]
[White "Siekanska, Maria"]
[Black "Zhou, Lepu Coco"]
[Result "1-0"]
[ECO "A58"]
[WhiteElo "1561"]
[BlackElo "1861"]
[Annotator "NA"]
[PlyCount "117"]
[EventDate "2019.07.11"]
[EventType "swiss"]
[EventCountry "CZE"]
[SourceTitle "playchess.com"]
[Source "ChessBase"]
[SourceQuality "1"]
[WhiteTeam "Poland"]
[BlackTeam "Germany"]
[WhiteTeamCountry "POL"]
[BlackTeamCountry "GER"]
[TimeControl "40/5400+30:1800+30"]

1. d4 {[%emt 0:00:00]} Nf6 {[%emt 0:00:00]} 2. c4 {[%emt 0:00:00]} c5 {[%emt 0:00:00]} 3. d5 {[%emt 0:00:00]} b5 {[%emt 0:00:05]} 4. cxb5 {[%emt 0:00:00]} a6 {[%emt 0:00:14]} 5. bxa6 {[%emt 0:00:00]} g6 {[%emt 0:00:12]} 6. Nc3 {[%emt 0:00:30]} Bg7 {[%emt 0:00:23]} 7. Nf3 {[%emt 0:01:11]} O-O {[%emt 0:00:51]} 8. e4 {[%emt 0:01:06]} d6 {[%emt 0:02:22]} 9. Bd3 {[%emt 0:01:50]} Nxa6 {[%emt 0:00:56]} 10. O-O {[%emt 0:01:58]} Qa5 {[%emt 0:01:19]} 11. Re1 {[%emt 0:04:54]} Bd7 {[%emt 0:05:48]} 12. e5 {[%emt 0:01:40]} Ng4 {[%emt 0:05:21]} 13. exd6 {[%emt 0:02:28]} exd6 {[%emt 0:00:37]} 14. Ne4 {[%emt 0:16:55]} Ba4 {[%emt 0:03:45]} 15. Qd2 {[%emt 0:04:46]} Qxd2 {[%emt 0:00:11]} 16. Bxd2 {[%emt 0:00:16]} Bxb2 {[%emt 0:02:15]} 17. Rab1 {[%emt 0:00:23]} Ba3 {[%emt 0:05:07]} 18. Nxd6 {[%emt 0:04:58]} Rfd8 {[%emt 0:00:27]} 19. Ne4 {[%emt 0:01:05]} Nb4 {[%emt 0:04:53]} 20. Bc4 {[%emt 0:03:07]} Bc2 {[%emt 0:02:00]} 21. h3 {[%emt 0:06:16]} Bxb1 {[%emt 0:00:46]} 22. Rxb1 {[%emt 0:00:01]} f5 {[%emt 0:14:14]} 23. d6+ {[%emt 0:01:16]} Kg7 24. Nxc5 {[%emt 0:02:44]} Rxd6 {[%emt 0:08:34]} 25. Ne6+ {[%emt 0:00:50]} Rxe6 {[%emt 0:03:27]} 26. Bxe6 {[%emt 0:00:07]} Nf6 {[%emt 0:01:27]} 27. Bxb4 {[%emt 0:00:07]} Rb8 {[%emt 0:00:09]} 28. Bf8+ {[%emt 0:04:16]} Rxf8 {[%emt 0:00:40]} 29. Rb7+ {[%emt 0:00:06]} Kh6 {[%emt 0:02:07]} 30. g4 {[%emt 0:04:18]} fxg4 {[%emt 0:00:49]} 31. hxg4 {[%emt 0:00:17]} Ne4 {[%emt 0:02:56]} 32. Ne5 {[%emt 0:04:30]} Kg5 {[%emt 0:06:56]} 33. Rb5 {[%emt 0:06:53]} Kh4 {[%emt 0:02:34]} 34. Rb3 {[%emt 0:03:34]} Ng5 {[%emt 0:01:04]} 35. Rxa3 {[%emt 0:01:12]} Nxe6 {[%emt 0:00:46]} 36. Ra7 {[%emt 0:00:42]} Ng5 {[%emt 0:01:00]} 37. Kg2 {[%emt 0:02:41]} Rf6 {[%emt 0:05:04]} 38. a4 {[%emt 0:00:45]} h6 {[%emt 0:01:48]} 39. f4 {[%emt 0:01:08]} Ne6 {[%emt 0:01:23]} 40. g5 {[%emt 0:06:24]} Nxf4+ {[%emt 0:00:56]} 41. Kf3 {[%emt 0:32:48]} Kxg5 {[%emt 0:30:24]} 42. Nf7+ {[%emt 0:00:32]} Kh5 {[%emt 0:01:07]} 43. Ke4 {[%emt 0:00:40]} g5 {[%emt 0:02:30]} 44. Ne5 {[%emt 0:00:56]} Ne2 {[%emt 0:02:57]} 45. a5 {[%emt 0:02:34]} Nc3+ {[%emt 0:00:28]} 46. Kd3 {[%emt 0:00:27]} Na4 {[%emt 0:01:13]} 47. Rc7 {[%emt 0:01:13]} Re6 {[%emt 0:02:16]} 48. Ke4 {[%emt 0:01:38]} g4 {[%emt 0:01:53]} 49. Kf5 {[%emt 0:00:51]} Re8 {[%emt 0:02:12]} 50. Nxg4 {[%emt 0:00:38]} Kh4 {[%emt 0:05:11]} 51. Nf6 {[%emt 0:00:13]} Rf8 {[%emt 0:00:00]} 52. Rc4+ {[%emt 0:00:00]} Kg3 {[%emt 0:00:00]} 53. Rxa4 {[%emt 0:00:00]} Rc8 {[%emt 0:00:00]} 54. a6 {[%emt 0:00:00]} Kf3 {[%emt 0:00:00]} 55. Ra3+ {[%emt 0:00:00]} Ke2 {[%emt 0:00:00]} 56. a7 {[%emt 0:00:00]} Ra8 {[%emt 0:00:00]} 57. Nd5 {[%emt 0:00:00]} Rf8+ {[%emt 0:00:00]} 58. Kg4 {[%emt 0:00:00]} h5+ {[%emt 0:00:00]} 59. Kh4 {[%emt 0:00:00]} 1-0

[Event "EYTCC U12 Girls 2019"]
[Site "Pardubice"]
[Date "2019.07.13"]
[Round "3.20"]
[White "Pohle, Saskia"]
[Black "Szopa, Emilia"]
[Result "1-0"]
[ECO "B34"]
[WhiteElo "1719"]
[BlackElo "1415"]
[Annotator "NA"]
[PlyCount "63"]
[EventDate "2019.07.11"]
[EventType "swiss"]
[EventCountry "CZE"]
[SourceTitle "playchess.com"]
[Source "ChessBase"]
[SourceQuality "1"]
[WhiteTeam "Germany"]
[BlackTeam "Poland"]
[WhiteTeamCountry "GER"]
[BlackTeamCountry "POL"]
[TimeControl "40/5400+30:1800+30"]

1. e4 {[%emt 0:00:00]} c5 {[%emt 0:00:00]} 2. Nf3 {[%emt 0:00:00]} Nc6 {[%emt 0:00:00]} 3. d4 {[%emt 0:00:00]} cxd4 {[%emt 0:00:00]} 4. Nxd4 Nf6 5. Nc3 {[%emt 0:00:59]} e5 {[%emt 0:01:06]} 6. Nde2 {[%emt 0:01:28]} Bc5 {[%emt 0:00:56]} 7. h3 {[%emt 0:00:47]} h6 {[%emt 0:00:52]} 8. g3 {[%emt 0:00:17]} d6 {[%emt 0:02:15]} 9. Bg2 {[%emt 0:00:29]} Be6 {[%emt 0:04:12]} 10. O-O {[%emt 0:02:53]} O-O {[%emt 0:00:59]} 11. Kh2 {[%emt 0:10:20]} Qd7 {[%emt 0:09:22]} 12. b3 {[%emt 0:08:30]} Nh7 {[%emt 0:07:27]} 13. f4 {[%emt 0:04:42]} f5 {[%emt 0:10:54]} 14. a3 {[%emt 0:11:08]} Rad8 {[%emt 0:03:29]} 15. Bb2 {[%emt 0:08:12]} Bb6 {[%emt 0:03:47]} 16. exf5 {[%emt 0:02:19]} Bxf5 {[%emt 0:04:59]} 17. Nd5 {[%emt 0:02:20]} Bc7 {[%emt 0:04:15]} 18. c4 {[%emt 0:04:32]} Nf6 {[%emt 0:04:11]} 19. Nec3 {[%emt 0:05:32]} Nd4 {[%emt 0:05:32]} 20. Rf2 {[%emt 0:06:29]} Nxd5 {[%emt 0:02:18]} 21. Nxd5 {[%emt 0:00:18]} Ne6 {[%emt 0:01:19]} 22. fxe5 {[%emt 0:03:39]} dxe5 {[%emt 0:01:40]} 23. Qh5 {[%emt 0:00:54]} Nc5 {[%emt 0:04:18]} 24. Rxf5 {[%emt 0:02:57]} Rxf5 {[%emt 0:01:48]} 25. Qxf5 {[%emt 0:00:15]} Qxf5 {[%emt 0:01:46]} 26. Ne7+ {[%emt 0:00:07]} Kh8 {[%emt 0:00:08]} 27. Nxf5 {[%emt 0:00:16]} Rd2 {[%emt 0:01:00]} 28. Rb1 {[%emt 0:02:05]} Nd3 {[%emt 0:01:27]} 29. Bc3 {[%emt 0:00:52]} Rc2 {[%emt 0:00:34]} 30. Bb4 {[%emt 0:03:21]} Re2 {[%emt 0:02:41]} 31. Rd1 {[%emt 0:02:49]} e4 {[%emt 0:02:52]} 32. Rd2 {[%emt 0:00:47]} 1-0

[Event "EYTCC U12 Girls 2019"]
[Site "Pardubice"]
[Date "2019.07.13"]
[Round "3.21"]
[White "Mikheeva, Galina"]
[Black "Veverkova, Dorota"]
[Result "1-0"]
[ECO "B12"]
[WhiteElo "1792"]
[BlackElo "1348"]
[Annotator "NA"]
[PlyCount "77"]
[EventDate "2019.07.11"]
[EventType "swiss"]
[EventCountry "CZE"]
[SourceTitle "playchess.com"]
[Source "ChessBase"]
[SourceQuality "1"]
[WhiteTeam "Russia"]
[BlackTeam "Czech Republic"]
[WhiteTeamCountry "RUS"]
[BlackTeamCountry "CZE"]
[TimeControl "40/5400+30:1800+30"]

1. e4 {[%emt 0:00:00]} c6 {[%emt 0:00:00]} 2. d4 {[%emt 0:00:00]} d5 {[%emt 0:00:00]} 3. e5 {[%emt 0:00:00]} Bf5 {[%emt 0:00:05]} 4. h4 {[%emt 0:00:16]} h5 {[%emt 0:00:08]} 5. Bd3 {[%emt 0:00:51]} Bxd3 {[%emt 0:00:12]} 6. Qxd3 {[%emt 0:00:03]} e6 {[%emt 0:00:11]} 7. Nf3 {[%emt 0:00:54]} c5 {[%emt 0:00:56]} 8. dxc5 {[%emt 0:00:41]} Nc6 {[%emt 0:02:51]} 9. Be3 {[%emt 0:02:48]} Nge7 {[%emt 0:02:07]} 10. c3 {[%emt 0:04:07]} Ng6 {[%emt 0:02:39]} 11. Qb5 {[%emt 0:05:43]} Qd7 {[%emt 0:01:55]} 12. Na3 {[%emt 0:06:09]} Ngxe5 {[%emt 0:03:18]} 13. Nxe5 {[%emt 0:03:06]} Nxe5 {[%emt 0:02:12]} 14. Qxd7+ {[%emt 0:00:08]} Kxd7 {[%emt 0:01:56]} 15. Ke2 {[%emt 0:04:28]} Kc6 {[%emt 0:02:25]} 16. b4 {[%emt 0:01:03]} a5 {[%emt 0:01:33]} 17. Nc2 {[%emt 0:02:18]} Be7 {[%emt 0:03:22]} 18. g3 {[%emt 0:08:27]} Bf6 {[%emt 0:04:32]} 19. Bd4 {[%emt 0:10:34]} Nd7 {[%emt 0:03:41]} 20. Rhd1 {[%emt 0:09:50]} Rhb8 {[%emt 0:03:14]} 21. a4 {[%emt 0:01:29]} b5 {[%emt 0:01:21]} 22. Bxf6 {[%emt 0:08:28]} Nxf6 {[%emt 0:01:29]} 23. Nd4+ {[%emt 0:00:18]} Kd7 {[%emt 0:01:14]} 24. Nxb5 {[%emt 0:12:43]} axb4 {[%emt 0:04:32]} 25. cxb4 {[%emt 0:00:12]} Kc6 {[%emt 0:01:22]} 26. Nd4+ {[%emt 0:03:31]} Kc7 {[%emt 0:02:23]} 27. b5 {[%emt 0:02:17]} Ne4 {[%emt 0:01:17]} 28. Rdc1 {[%emt 0:00:45]} e5 {[%emt 0:01:23]} 29. Nf5 {[%emt 0:02:22]} g6 {[%emt 0:02:19]} 30. Ne7 {[%emt 0:04:09]} d4 {[%emt 0:02:22]} 31. Nd5+ {[%emt 0:00:53]} Kd8 {[%emt 0:01:44]} 32. c6 {[%emt 0:00:44]} Kc8 {[%emt 0:01:02]} 33. b6 {[%emt 0:02:00]} Ra5 {[%emt 0:03:04]} 34. Ne7+ {[%emt 0:00:51]} Kd8 {[%emt 0:00:44]} 35. c7+ {[%emt 0:00:05]} Kxe7 {[%emt 0:00:40]} 36. cxb8=Q {[%emt 0:00:05]} Nc3+ {[%emt 0:01:07]} 37. Rxc3 {[%emt 0:00:17]} dxc3 {[%emt 0:00:09]} 38. Qc7+ {[%emt 0:00:17]} Kf8 {[%emt 0:00:21]} 39. b7 1-0

[Event "EYTCC U12 Girls 2019"]
[Site "Pardubice"]
[Date "2019.07.13"]
[Round "3.22"]
[White "Zadrapova, Amalie"]
[Black "Goriachkina, Oksana"]
[Result "1-0"]
[ECO "B15"]
[WhiteElo "1248"]
[BlackElo "1417"]
[Annotator "NA"]
[PlyCount "127"]
[EventDate "2019.07.11"]
[EventType "swiss"]
[EventCountry "CZE"]
[SourceTitle "playchess.com"]
[Source "ChessBase"]
[SourceQuality "1"]
[WhiteTeam "Czech Republic"]
[BlackTeam "Russia"]
[WhiteTeamCountry "CZE"]
[BlackTeamCountry "RUS"]
[TimeControl "40/5400+30:1800+30"]

1. e4 {[%emt 0:00:00]} c6 {[%emt 0:00:00]} 2. d4 {[%emt 0:00:49]} d5 {[%emt 0:00:00]} 3. Nc3 {[%emt 0:02:57]} dxe4 {[%emt 0:00:03]} 4. Nxe4 {[%emt 0:00:41]} Nf6 {[%emt 0:00:09]} 5. Ng3 {[%emt 0:00:41]} Bg4 {[%emt 0:01:45]} 6. f3 {[%emt 0:02:30]} Bc8 {[%emt 0:06:24]} 7. Be3 {[%emt 0:10:34]} e6 {[%emt 0:00:45]} 8. Qd2 {[%emt 0:01:36]} Be7 {[%emt 0:02:38]} 9. O-O-O {[%emt 0:01:48]} O-O {[%emt 0:01:27]} 10. h4 {[%emt 0:04:41]} Nd5 {[%emt 0:01:38]} 11. Bg5 {[%emt 0:02:21]} Nd7 {[%emt 0:04:37]} 12. a3 {[%emt 0:08:31]} a6 {[%emt 0:05:09]} 13. Bd3 {[%emt 0:01:33]} b5 {[%emt 0:03:13]} 14. Bh6 {[%emt 0:21:34]} Nc7 {[%emt 0:32:34]} 15. Bxg7 {[%emt 0:06:08]} f5 {[%emt 0:12:40]} 16. Bxf8 {[%emt 0:03:09]} Qxf8 {[%emt 0:00:17]} 17. c3 {[%emt 0:10:30]} Nd5 {[%emt 0:06:14]} 18. N1e2 {[%emt 0:01:29]} N7b6 {[%emt 0:01:58]} 19. Nh5 {[%emt 0:05:29]} Kf7 {[%emt 0:02:58]} 20. g4 {[%emt 0:01:40]} Ke8 {[%emt 0:00:16]} 21. gxf5 {[%emt 0:00:25]} exf5 {[%emt 0:00:26]} 22. Nhf4 {[%emt 0:01:09]} Kd7 {[%emt 0:01:16]} 23. Nxd5 {[%emt 0:00:57]} Nxd5 {[%emt 0:00:05]} 24. Nf4 {[%emt 0:03:10]} Qf7 {[%emt 0:01:19]} 25. Nxd5 {[%emt 0:01:24]} Qxd5 {[%emt 0:00:46]} 26. Qc2 {[%emt 0:00:56]} Kc7 {[%emt 0:00:17]} 27. c4 {[%emt 0:00:57]} Qxd4 {[%emt 0:01:44]} 28. cxb5 {[%emt 0:00:29]} Qe3+ {[%emt 0:02:17]} 29. Kb1 {[%emt 0:01:00]} Qxf3 {[%emt 0:01:39]} 30. Qxc6+ {[%emt 0:00:53]} Qxc6 {[%emt 0:00:05]} 31. bxc6 {[%emt 0:00:05]} Kxc6 {[%emt 0:00:34]} 32. Rdf1 {[%emt 0:00:25]} Rb8 {[%emt 0:00:55]} 33. b4 {[%emt 0:01:10]} a5 {[%emt 0:00:57]} 34. b5+ {[%emt 0:00:07]} Kc7 {[%emt 0:00:36]} 35. a4 {[%emt 0:00:12]} Bb7 {[%emt 0:01:42]} 36. Rhg1 {[%emt 0:00:37]} Bxh4 {[%emt 0:00:56]} 37. Rg7+ {[%emt 0:00:32]} Kd6 {[%emt 0:00:37]} 38. Rxh7 {[%emt 0:00:37]} Bg3 {[%emt 0:01:16]} 39. Rxf5 {[%emt 0:00:36]} Ba8 {[%emt 0:05:11]} 40. Rh6+ {[%emt 0:00:38]} Ke7 {[%emt 0:00:30]} 41. Bc2 {[%emt 0:32:14]} Rg8 {[%emt 0:31:11]} 42. Rh7+ {[%emt 0:00:37]} Kd6 {[%emt 0:00:57]} 43. b6 {[%emt 0:02:50]} Rb8 {[%emt 0:00:26]} 44. Rh6+ {[%emt 0:00:00]} Ke7 {[%emt 0:00:00]} 45. Rxa5 {[%emt 0:00:00]} Bf4 {[%emt 0:00:00]} 46. Ra7+ {[%emt 0:00:00]} Rb7 {[%emt 0:00:00]} 47. Rh7+ {[%emt 0:00:00]} Kd6 {[%emt 0:00:00]} 48. Rhxb7 {[%emt 0:00:00]} Bxb7 {[%emt 0:00:00]} 49. Rxb7 {[%emt 0:00:00]} Kc6 {[%emt 0:00:00]} 50. Be4+ {[%emt 0:00:00]} Kc5 {[%emt 0:00:00]} 51. Rf7 {[%emt 0:00:00]} Bg3 {[%emt 0:00:00]} 52. b7 {[%emt 0:00:00]} Kb6 {[%emt 0:00:00]} 53. Rf8 {[%emt 0:00:00]} Kc5 {[%emt 0:00:00]} 54. b8=Q {[%emt 0:00:00]} Bxb8 {[%emt 0:00:00]} 55. Rxb8 {[%emt 0:00:00]} Kd4 {[%emt 0:00:00]} 56. a5 {[%emt 0:00:00]} Kxe4 {[%emt 0:00:00]} 57. a6 {[%emt 0:00:00]} Kd5 {[%emt 0:00:00]} 58. a7 {[%emt 0:00:00]} Kd4 {[%emt 0:00:00]} 59. a8=Q {[%emt 0:00:00]} Ke5 {[%emt 0:00:00]} 60. Qa4 {[%emt 0:00:00]} Kd6 {[%emt 0:00:00]} 61. Rb5 {[%emt 0:00:00]} Ke7 {[%emt 0:00:00]} 62. Qa6 {[%emt 0:00:00]} Kf7 {[%emt 0:00:00]} 63. Rb7+ {[%emt 0:00:00]} Ke8 {[%emt 0:00:00]} 64. Qa8# 1-0

[Event "EYTCC U12 Girls 2019"]
[Site "Pardubice"]
[Date "2019.07.13"]
[Round "3.23"]
[White "Alagoz, Zumra Meryem"]
[Black "Havelkova, Beata"]
[Result "1/2-1/2"]
[ECO "B22"]
[WhiteElo "1310"]
[BlackElo "1316"]
[Annotator "NA"]
[PlyCount "112"]
[EventDate "2019.07.11"]
[EventType "swiss"]
[EventCountry "CZE"]
[SourceTitle "playchess.com"]
[Source "ChessBase"]
[SourceQuality "1"]
[WhiteTeam "Turkey"]
[BlackTeam "Czech Republic"]
[WhiteTeamCountry "TUR"]
[BlackTeamCountry "CZE"]
[TimeControl "40/5400+30:1800+30"]

1. e4 {[%emt 0:00:00]} c5 {[%emt 0:00:00]} 2. c3 {[%emt 0:00:00]} d5 {[%emt 0:00:00]} 3. exd5 {[%emt 0:00:00]} Qxd5 {[%emt 0:00:00]} 4. d4 {[%emt 0:00:00]} e5 {[%emt 0:00:00]} 5. dxe5 {[%emt 0:05:31]} Qxd1+ {[%emt 0:00:11]} 6. Kxd1 {[%emt 0:00:06]} Nc6 {[%emt 0:00:13]} 7. Bb5 {[%emt 0:02:47]} Bg4+ {[%emt 0:02:26]} 8. f3 {[%emt 0:01:06]} O-O-O+ {[%emt 0:00:40]} 9. Bd2 {[%emt 0:07:11]} Bd7 {[%emt 0:08:49]} 10. Bxc6 {[%emt 0:01:03]} Bxc6 {[%emt 0:00:52]} 11. Nh3 {[%emt 0:05:15]} f6 {[%emt 0:13:37]} 12. exf6 {[%emt 0:03:15]} Nxf6 {[%emt 0:00:29]} 13. Kc2 {[%emt 0:02:31]} Bd6 {[%emt 0:03:41]} 14. Bg5 {[%emt 0:05:03]} Rhe8 {[%emt 0:03:09]} 15. Nd2 {[%emt 0:08:31]} Re2 {[%emt 0:01:29]} 16. g3 {[%emt 0:03:56]} Bxf3 {[%emt 0:01:15]} 17. Rhf1 {[%emt 0:07:23]} Bg4 {[%emt 0:08:38]} 18. Nf2 {[%emt 0:02:52]} Bf5+ {[%emt 0:10:00]} 19. Kd1 {[%emt 0:01:33]} Rde8 {[%emt 0:02:15]} 20. Bxf6 {[%emt 0:05:18]} gxf6 {[%emt 0:00:11]} 21. Nfe4 {[%emt 0:15:20]} R2xe4 {[%emt 0:04:33]} 22. Nxe4 {[%emt 0:00:09]} Bxe4 {[%emt 0:00:10]} 23. Rxf6 {[%emt 0:00:17]} Kc7 {[%emt 0:01:53]} 24. Kd2 {[%emt 0:02:17]} Bd5 {[%emt 0:02:06]} 25. Rh6 {[%emt 0:05:10]} Bg8 {[%emt 0:02:57]} 26. b3 {[%emt 0:02:12]} b6 {[%emt 0:02:45]} 27. Rf1 {[%emt 0:01:31]} Be7 {[%emt 0:02:47]} 28. Rh5 {[%emt 0:03:11]} h6 {[%emt 0:03:21]} 29. h4 {[%emt 0:01:05]} Bd6 {[%emt 0:01:28]} 30. Rf3 {[%emt 0:01:54]} Re6 {[%emt 0:01:08]} 31. g4 {[%emt 0:01:30]} Rg6 {[%emt 0:02:35]} 32. g5 {[%emt 0:00:51]} hxg5 {[%emt 0:04:33]} 33. Rxg5 {[%emt 0:00:11]} Rxg5 34. hxg5 {[%emt 0:00:05]} Bd5 {[%emt 0:02:20]} 35. Rf1 {[%emt 0:00:38]} Bh2 {[%emt 0:00:58]} 36. g6 {[%emt 0:00:30]} Be5 {[%emt 0:01:53]} 37. c4 {[%emt 0:00:13]} Be6 {[%emt 0:01:11]} 38. Rg1 {[%emt 0:01:29]} Bg7 {[%emt 0:00:32]} 39. Rh1 {[%emt 0:00:34]} Bg8 {[%emt 0:00:55]} 40. Rf1 {[%emt 0:01:14]} Kd7 {[%emt 0:00:55]} 41. Kd3 {[%emt 0:30:24]} Kc6 {[%emt 0:33:57]} 42. Re1 {[%emt 0:00:46]} Kd7 {[%emt 0:00:53]} 43. Ke4 {[%emt 0:01:34]} Ke7 {[%emt 0:03:44]} 44. Kf5+ {[%emt 0:00:39]} Kd7 {[%emt 0:01:13]} 45. Re4 {[%emt 0:01:16]} Kd8 {[%emt 0:01:12]} 46. Re1 {[%emt 0:00:49]} Kd7 {[%emt 0:00:08]} 47. Rd1+ {[%emt 0:00:29]} Kc7 {[%emt 0:02:39]} 48. Kg5 {[%emt 0:01:24]} Be6 {[%emt 0:00:00]} 49. Rd3 {[%emt 0:00:00]} Bg8 {[%emt 0:00:00]} 50. Kf5 {[%emt 0:00:00]} Bd4 {[%emt 0:00:00]} 51. Kg5 {[%emt 0:00:00]} Bg7 {[%emt 0:00:00]} 52. Re3 {[%emt 0:00:00]} Kd7 {[%emt 0:00:00]} 53. Kf5 {[%emt 0:00:00]} Kd8 {[%emt 0:00:00]} 54. Re4 {[%emt 0:00:00]} Kd7 {[%emt 0:00:00]} 55. Re1 {[%emt 0:00:00]} Kd8 {[%emt 0:00:00]} 56. Rd1+ {[%emt 0:00:00]} Kc7 {[%emt 0:00:00]} 1/2-1/2

[Event "EYTCC U12 Girls 2019"]
[Site "Pardubice"]
[Date "2019.07.13"]
[Round "3.24"]
[White "Janouskova, Adela"]
[Black "Buyuk, Elvin Esma"]
[Result "1/2-1/2"]
[ECO "B00"]
[WhiteElo "1200"]
[BlackElo "1238"]
[Annotator "NA"]
[PlyCount "70"]
[EventDate "2019.07.11"]
[EventType "swiss"]
[EventCountry "CZE"]
[SourceTitle "playchess.com"]
[Source "ChessBase"]
[SourceQuality "1"]
[WhiteTeam "Czech Republic"]
[BlackTeam "Turkey"]
[WhiteTeamCountry "CZE"]
[BlackTeamCountry "TUR"]
[TimeControl "40/5400+30:1800+30"]

1. e4 {[%emt 0:00:00]} Nc6 {[%emt 0:00:00]} 2. d4 {[%emt 0:00:00]} d5 {[%emt 0:00:00]} 3. exd5 {[%emt 0:00:33]} Qxd5 {[%emt 0:00:09]} 4. Nf3 {[%emt 0:00:36]} Bg4 {[%emt 0:02:09]} 5. Be2 {[%emt 0:01:07]} e6 {[%emt 0:03:15]} 6. O-O {[%emt 0:03:55]} Nf6 {[%emt 0:03:17]} 7. c3 {[%emt 0:08:41]} Qd8 {[%emt 0:11:24]} 8. Bf4 {[%emt 0:01:02]} Bd6 {[%emt 0:05:03]} 9. Bxd6 {[%emt 0:01:13]} Qxd6 {[%emt 0:01:37]} 10. Nbd2 {[%emt 0:02:48]} O-O {[%emt 0:01:08]} 11. h3 {[%emt 0:05:24]} Bh5 {[%emt 0:03:12]} 12. Qc2 {[%emt 0:03:19]} Bg6 {[%emt 0:02:05]} 13. Bd3 {[%emt 0:02:53]} Bxd3 {[%emt 0:01:15]} 14. Qxd3 {[%emt 0:00:38]} Ne7 {[%emt 0:06:07]} 15. Ng5 {[%emt 0:04:02]} h6 {[%emt 0:05:27]} 16. Nde4 {[%emt 0:03:41]} Nxe4 {[%emt 0:01:44]} 17. Nxe4 {[%emt 0:00:07]} Qd5 {[%emt 0:05:18]} 18. Rfe1 {[%emt 0:01:26]} Rad8 {[%emt 0:04:52]} 19. Qg3 {[%emt 0:01:24]} Ng6 {[%emt 0:02:32]} 20. Qxc7 {[%emt 0:02:11]} Rc8 {[%emt 0:01:47]} 21. Qg3 {[%emt 0:01:50]} Kh8 {[%emt 0:02:14]} 22. Nd6 {[%emt 0:02:43]} Rc7 {[%emt 0:04:15]} 23. Ne4 {[%emt 0:12:11]} Re7 {[%emt 0:04:04]} 24. Nc5 {[%emt 0:12:37]} e5 {[%emt 0:08:09]} 25. Qd3 {[%emt 0:05:24]} Nf4 {[%emt 0:05:54]} 26. Qe4 {[%emt 0:02:26]} Qxe4 {[%emt 0:01:42]} 27. Rxe4 {[%emt 0:00:57]} b6 {[%emt 0:02:55]} 28. Nb3 {[%emt 0:01:59]} Rfe8 {[%emt 0:03:01]} 29. dxe5 {[%emt 0:02:17]} Nd3 {[%emt 0:01:51]} 30. Rb1 {[%emt 0:06:23]} Rxe5 {[%emt 0:01:15]} 31. Rxe5 {[%emt 0:00:30]} Rxe5 {[%emt 0:00:18]} 32. Nd4 {[%emt 0:01:25]} Rg5 {[%emt 0:01:35]} 33. b3 {[%emt 0:01:28]} Nf4 {[%emt 0:03:14]} 34. g3 {[%emt 0:04:01]} Nxh3+ {[%emt 0:01:12]} 35. Kf1 {[%emt 0:01:07]} Rg6 {[%emt 0:01:04]} 1/2-1/2

[Event "EYTCC U12 Girls 2019"]
[Site "Pardubice"]
[Date "2019.07.14"]
[Round "4.17"]
[White "Mellor, Jessica"]
[Black "Havelkova, Beata"]
[Result "1-0"]
[ECO "B23"]
[WhiteElo "1663"]
[BlackElo "1316"]
[Annotator "NA"]
[PlyCount "50"]
[EventDate "2019.07.11"]
[EventType "swiss"]
[EventCountry "CZE"]
[SourceTitle "playchess.com"]
[Source "ChessBase"]
[SourceQuality "1"]
[WhiteTeam "England"]
[BlackTeam "Czech Republic"]
[WhiteTeamCountry "ENG"]
[BlackTeamCountry "CZE"]
[TimeControl "40/5400+30:1800+30"]

1. e4 {[%emt 0:00:00]} c5 {[%emt 0:00:00]} 2. Nc3 {[%emt 0:00:00]} d6 {[%emt 0:00:00]} 3. f4 {[%emt 0:00:00]} g6 {[%emt 0:00:36]} 4. Nf3 {[%emt 0:00:18]} Bg7 {[%emt 0:00:23]} 5. Bb5+ {[%emt 0:00:57]} Bd7 {[%emt 0:00:51]} 6. Bxd7+ {[%emt 0:00:16]} Qxd7 {[%emt 0:00:38]} 7. O-O {[%emt 0:01:20]} e6 {[%emt 0:00:45]} 8. d3 {[%emt 0:05:00]} Ne7 {[%emt 0:01:00]} 9. Qe1 {[%emt 0:03:54]} Nbc6 {[%emt 0:01:40]} 10. a4 {[%emt 0:05:12]} Nb4 {[%emt 0:09:55]} 11. Qf2 {[%emt 0:06:40]} Nec6 {[%emt 0:16:32]} 12. Be3 {[%emt 0:05:49]} O-O {[%emt 0:03:35]} 13. Kh1 {[%emt 0:05:49]} Nd4 {[%emt 0:03:59]} 14. Bxd4 {[%emt 0:10:43]} Bxd4 {[%emt 0:00:39]} 15. Nxd4 {[%emt 0:02:04]} cxd4 {[%emt 0:00:09]} 16. Nb5 {[%emt 0:02:04]} e5 {[%emt 0:02:05]} 17. Qd2 {[%emt 0:04:35]} Nc6 {[%emt 0:02:30]} 18. f5 {[%emt 0:03:27]} Kh8 {[%emt 0:09:21]} 19. f6 {[%emt 0:02:09]} a6 {[%emt 0:02:26]} 20. Qh6 {[%emt 0:01:35]} Rg8 {[%emt 0:00:31]} 21. Rf3 {[%emt 0:00:56]} axb5 {[%emt 0:01:43]} 22. Rh3 {[%emt 0:01:03]} Qxh3 {[%emt 0:00:11]} 23. Qxh3 {[%emt 0:00:13]} Nb8 {[%emt 0:03:03]} 24. Rf1 {[%emt 0:02:24]} bxa4 {[%emt 0:03:11]} 25. Rf3 {[%emt 0:00:19]} b5 1-0